bitfinex-derivatives/quotes_BTCF0:USTF0_20250129
["timestamp","ask_amount","ask_price","bid_price","bid_amount"]
[1738141288971,0.92728012,102690.0,102680.0,0.30280467]
[1738141290468,0.917429,102690.0,102680.0,0.37564858]
[1738141291371,0.917429,102690.0,102680.0,0.30280467]
[1738141293666,1.00018721,102690.0,102680.0,0.10796067]
[1738141293873,1.00018721,102690.0,102680.0,0.1065]
[1738141295165,1.00018721,102690.0,102680.0,0.0441]
[1738141295365,1.00026334,102690.0,102680.0,0.0441]
[1738141295776,2.50026334,102690.0,102680.0,0.1089]
[1738141295973,1.00026334,102690.0,102680.0,0.1089]
[1738141296174,0.92741943,102690.0,102680.0,0.1079]
[1738141296376,1.04287039,102690.0,102680.0,0.1069]
[1738141296970,0.194848,102680.0,102670.0,0.14734275]
[1738141297282,0.48256789,102680.0,102670.0,0.14734275]
[1738141297471,0.73364391,102680.0,102650.0,8.361e-05]
[1738141297677,0.98932991,102660.0,102650.0,8.361e-05]
[1738141298793,0.98943628,102660.0,102650.0,8.361e-05]
[1738141298983,0.98943628,102660.0,102650.0,0.00208361]
[1738141300095,1.06228019,102660.0,102650.0,0.00208361]
[1738141300295,0.98943628,102660.0,102650.0,0.00208361]
[1738141301787,1.16406786,102660.0,102650.0,0.00208361]
[1738141301997,0.96918186,102660.0,102640.0,0.22481271]
[1738141302198,0.555705,102650.0,102640.0,0.22481271]
[1738141302503,0.555705,102650.0,102640.0,0.2651507]
[1738141302892,0.555705,102650.0,102640.0,0.33799461]
[1738141303696,0.555705,102650.0,102640.0,0.2651507]
[1738141304297,0.556705,102650.0,102640.0,0.2651507]
[1738141304494,0.556705,102650.0,102640.0,0.2661507]
[1738141305097,0.556705,102650.0,102640.0,0.2651507]
[1738141305291,0.556705,102650.0,102640.0,0.2661507]
[1738141310903,0.62954891,102650.0,102640.0,0.2661507]
[1738141311399,0.62854891,102650.0,102640.0,0.2661507]
[1738141311604,0.62954891,102650.0,102640.0,0.2671507]
[1738141311996,0.62854891,102650.0,102640.0,0.2661507]
[1738141312196,0.62854891,102650.0,102640.0,0.2671507]
[1738141312599,0.555705,102650.0,102640.0,0.2671507]
[1738141312800,0.72974313,102650.0,102640.0,0.2671507]
[1738141313608,0.72974313,102650.0,102640.0,0.2661507]
[1738141316213,0.53483813,102650.0,102640.0,0.33899461]
[1738141316509,0.17403813,102650.0,102640.0,0.81274513]
[1738141317306,0.17403813,102650.0,102640.0,0.82260843]
[1738141318707,0.17403813,102650.0,102640.0,0.90355274]
[1738141319006,0.10094549,102650.0,102640.0,0.90355274]
[1738141320405,0.20384321,102660.0,102650.0,0.194905]
[1738141320607,0.23298824,102670.0,102660.0,0.194886]
[1738141320910,0.43626844,102670.0,102660.0,0.3413679]
[1738141321505,0.43636833,102670.0,102660.0,0.3413679]
[1738141321799,0.44136833,102670.0,102660.0,0.41421181]
[1738141322002,0.44136833,102670.0,102660.0,0.87242547]
[1738141322514,0.43836833,102670.0,102660.0,0.87242547]
[1738141322699,0.97347224,102690.0,102660.0,0.78518349]
[1738141322903,0.61267224,102690.0,102680.0,0.26769191]
[1738141323107,0.61267224,102690.0,102680.0,0.3080299]
[1738141323411,0.61267224,102690.0,102680.0,0.4599899]
[1738141323604,0.61267224,102690.0,102680.0,0.6786899]
[1738141323800,0.61267224,102690.0,102680.0,1.0394899]
[1738141323998,0.29105264,102690.0,102680.0,0.9497299]
[1738141324211,0.00014613,102700.0,102690.0,0.194829]
[1738141324507,0.555578,102720.0,102710.0,0.194791]
[1738141324701,0.84626986,102720.0,102710.0,0.194791]
[1738141324902,0.85607182,102720.0,102710.0,0.23512899]
[1738141325102,0.29069186,102720.0,102710.0,0.7587729]
[1738141325405,0.68056105,102730.0,102720.0,0.194772]
[1738141325607,0.31990718,102730.0,102720.0,0.3079539]
[1738141326309,0.68070718,102730.0,102720.0,0.1131819]
[1738141326510,0.194829,102690.0,102680.0,0.08106776]
[1738141326700,0.07284391,102690.0,102680.0,0.23381158]
[1738141326896,0.43364391,102690.0,102680.0,0.33672583]
[1738141327102,0.3608,102690.0,102680.0,0.33672583]
[1738141327305,0.62847291,102690.0,102680.0,0.14187783]
[1738141327506,0.70131682,102690.0,102680.0,0.00012345]
[1738141327701,2.12847291,102690.0,102680.0,0.00012345]
[1738141328009,2.12847291,102690.0,102680.0,0.00112345]
[1738141328209,2.055629,102690.0,102680.0,0.07396736]
[1738141328405,0.555629,102690.0,102680.0,0.19597145]
[1738141329004,0.557629,102690.0,102680.0,0.19597145]
[1738141329404,0.557629,102690.0,102680.0,0.00112345]
[1738141329613,0.62947291,102690.0,102680.0,0.00112345]
[1738141330404,0.62847291,102690.0,102680.0,0.00112345]
[1738141331509,0.194848,102680.0,102670.0,0.232077]
[1738141331712,0.62849191,102680.0,102670.0,0.232077]
[1738141332519,0.6285951,102680.0,102670.0,0.232077]
[1738141332717,0.6285951,102680.0,102670.0,0.233077]
[1738141333714,0.55575119,102680.0,102670.0,0.233077]
[1738141333916,0.6285951,102680.0,102670.0,0.00114613]
[1738141335214,2.1285951,102680.0,102670.0,0.00114613]
[1738141335513,0.55575119,102680.0,102670.0,0.00114613]
[1738141335811,0.6285951,102680.0,102670.0,0.00114613]
[1738141338109,0.6305951,102680.0,102670.0,0.00014613]
[1738141338711,0.6335951,102680.0,102670.0,0.00014613]
[1738141338915,0.6345951,102680.0,102670.0,0.00014613]
[1738141339312,0.56175119,102680.0,102670.0,0.22511313]
[1738141339715,0.56275119,102680.0,102670.0,0.22511313]
[1738141340910,0.56275119,102680.0,102670.0,0.29795704]
[1738141341113,0.36790319,102680.0,102670.0,0.33105704]
[1738141342614,0.36790319,102680.0,102670.0,0.25821313]
[1738141342919,0.36790319,102680.0,102670.0,0.33105704]
[1738141346824,0.36790319,102680.0,102670.0,0.42845173]
[1738141347023,0.36790319,102680.0,102670.0,0.54133336]
[1738141348926,0.00710319,102680.0,102670.0,1.01641336]
[1738141349222,0.00710319,102680.0,102670.0,0.65561336]
[1738141351323,0.00710319,102680.0,102670.0,0.87268304]
[1738141351524,0.00710319,102680.0,102670.0,0.94552695]
[1738141353231,0.36790319,102680.0,102670.0,0.54812672]
[1738141353425,0.56275119,102680.0,102670.0,0.54812672]
[1738141354425,0.56275119,102680.0,102670.0,0.51502672]
[1738141354727,0.6355951,102680.0,102670.0,0.29005972]
[1738141355126,0.6656951,102680.0,102670.0,0.29005972]
[1738141355820,0.6656951,102680.0,102670.0,0.5225968]
[1738141356423,0.3608,102670.0,102630.0,0.27391439]
[1738141356723,0.7216,102640.0,102630.0,0.5417013]
[1738141357332,0.3608,102650.0,102630.0,0.73363178]
[1738141357518,0.36094613,102650.0,102640.0,0.36336091]
[1738141358029,0.36094613,102650.0,102640.0,0.47346175]
[1738141359228,0.36194613,102650.0,102640.0,0.47446175]
[1738141359426,0.36194613,102650.0,102640.0,0.47546175]
[1738141359931,0.36194613,102650.0,102640.0,0.36536091]
[1738141360426,0.55685113,102650.0,102640.0,0.292517]
[1738141360628,0.55685113,102650.0,102640.0,0.36536091]
[1738141361021,0.36194613,102650.0,102640.0,0.36536091]
[1738141361330,0.00114613,102650.0,102640.0,0.47450814]
[1738141363127,0.00114613,102650.0,102640.0,0.51348007]
[1738141363632,0.00114613,102650.0,102640.0,0.61090322]
[1738141364730,0.00114613,102650.0,102640.0,0.97170322]
[1738141365636,0.00114613,102650.0,102640.0,0.61090322]
[1738141365935,0.00114613,102650.0,102640.0,0.97170322]
[1738141366424,0.00114613,102650.0,102640.0,0.98157084]
[1738141368431,0.00114613,102650.0,102640.0,0.52334769]
[1738141369031,0.55685113,102650.0,102640.0,0.41420046]
[1738141369538,0.55685113,102650.0,102640.0,0.37522853]
[1738141370235,0.55685113,102650.0,102640.0,0.292517]
[1738141370434,0.55685113,102650.0,102640.0,0.196917]
[1738141370634,0.58735113,102650.0,102640.0,0.196917]
[1738141378344,0.36194613,102650.0,102640.0,0.26976091]
[1738141378642,0.00114613,102650.0,102640.0,0.47384829]
[1738141380929,0.00114613,102650.0,102640.0,0.48360196]
[1738141381136,0.36194613,102650.0,102640.0,0.48360196]
[1738141382434,0.36194613,102650.0,102640.0,0.37431458]
[1738141385546,0.36194613,102650.0,102640.0,0.47173773]
[1738141385742,0.36194613,102650.0,102640.0,0.51072669]
[1738141386535,0.36194613,102650.0,102640.0,0.41592669]
[1738141386738,0.00114613,102650.0,102640.0,0.8822706]
[1738141387045,7e-05,102660.0,102650.0,0.194905]
[1738141387238,7e-05,102660.0,102650.0,0.66753787]
[1738141387548,7e-05,102660.0,102650.0,0.77475024]
[1738141388353,7e-05,102660.0,102650.0,0.77575024]
[1738141388648,7e-05,102660.0,102650.0,0.94600781]
[1738141393052,7e-05,102660.0,102650.0,0.8731639]
[1738141393248,0.555756,102660.0,102650.0,0.30773787]
[1738141393647,0.555756,102660.0,102650.0,0.03998896]
[1738141393953,0.588156,102660.0,102650.0,0.001]
[1738141395148,0.66099991,102660.0,102650.0,0.001]
[1738141397445,0.74810334,102660.0,102650.0,0.001]
[1738141397855,0.75800903,102660.0,102650.0,0.001]
[1738141403162,0.75800903,102660.0,102620.0,0.05851437]
[1738141403457,0.194981,102610.0,102600.0,0.56627979]
[1738141403660,0.98942491,102610.0,102600.0,0.56627979]
[1738141404245,0.98950376,102610.0,102600.0,0.56627979]
[1738141405253,0.98950376,102610.0,102600.0,0.56727979]
[1738141405753,0.98950376,102610.0,102600.0,0.59827979]
[1738141406745,0.98950376,102610.0,102600.0,0.132]
[1738141411564,0.98950376,102610.0,102600.0,0.327]
[1738141411766,0.91665985,102610.0,102600.0,0.39984391]
[1738141412062,0.19505985,102610.0,102600.0,0.39984391]
[1738141412456,0.19505985,102610.0,102600.0,0.327]
[1738141412661,0.55585985,102610.0,102600.0,0.327]
[1738141413662,0.62870376,102610.0,102600.0,0.327]
[1738141415468,0.62870376,102610.0,102600.0,0.33659744]
[1738141415664,0.62870376,102610.0,102600.0,0.14159744]
[1738141416871,0.62870376,102610.0,102600.0,0.101]
[1738141417077,0.69200376,102610.0,102600.0,0.101]
[1738141418169,0.76484767,102610.0,102600.0,0.001]
[1738141418471,0.195038,102580.0,102570.0,0.26789391]
[1738141418664,0.555838,102580.0,102570.0,0.26789391]
[1738141418862,0.555838,102580.0,102570.0,0.36535504]
[1738141419072,0.00014613,102590.0,102580.0,0.195038]
[1738141419275,0.00014613,102590.0,102580.0,0.26788191]
[1738141419469,0.00014613,102590.0,102580.0,0.37956191]
[1738141419670,0.00014613,102590.0,102580.0,0.47705155]
[1738141420370,0.36094613,102590.0,102580.0,0.47705155]
[1738141420676,0.36094613,102590.0,102580.0,0.36737155]
[1738141420869,0.36194613,102590.0,102580.0,0.36737155]
[1738141422583,0.36194613,102590.0,102580.0,0.37689671]
[1738141423788,0.00114613,102590.0,102580.0,0.37689671]
[1738141425982,0.36194613,102590.0,102580.0,0.27940707]
[1738141426486,0.36194613,102590.0,102580.0,0.3768872]
[1738141426686,0.00114613,102590.0,102580.0,0.3768872]
[1738141426881,0.36194613,102590.0,102580.0,0.3768872]
[1738141427192,0.55696513,102590.0,102580.0,0.20656316]
[1738141428891,0.55696513,102590.0,102580.0,0.23776316]
[1738141431889,0.55696513,102590.0,102580.0,0.41207515]
[1738141431890,0.00114613,102590.0,102580.0,0.41207515]
[1738141432283,0.00114613,102590.0,102580.0,0.50955528]
[1738141432785,0.00114613,102590.0,102580.0,0.54851454]
[1738141434785,0.00114613,102590.0,102580.0,0.56315454]
[1738141435987,0.00114613,102590.0,102580.0,0.67399454]
[1738141437397,0.00114613,102590.0,102580.0,0.70679454]
[1738141437597,0.00114613,102590.0,102580.0,0.73779454]
[1738141440691,0.00114613,102590.0,102580.0,1.09859454]
[1738141440894,0.56389206,102610.0,102600.0,0.195]
[1738141441199,0.56389206,102610.0,102600.0,0.30680317]
[1738141441496,0.56389206,102610.0,102600.0,0.39780317]
[1738141441896,0.75887306,102610.0,102600.0,0.23395926]
[1738141442291,0.75887306,102610.0,102600.0,0.30680317]
[1738141442692,0.75887306,102610.0,102600.0,0.30780317]
[1738141443495,0.64298111,102610.0,102600.0,0.30780317]
[1738141444701,0.64298111,102610.0,102600.0,0.23495926]
[1738141444999,0.67538111,102610.0,102600.0,0.23495926]
[1738141446994,0.58827768,102610.0,102600.0,0.30780317]
[1738141447194,0.55587768,102610.0,102600.0,0.30780317]
[1738141447489,0.36089668,102610.0,102600.0,0.30780317]
[1738141450407,0.55587768,102610.0,102600.0,0.23495926]
[1738141450806,0.55587768,102610.0,102600.0,0.30780317]
[1738141451402,0.55587768,102610.0,102600.0,0.26884391]
[1738141453505,0.55587768,102610.0,102600.0,0.30791158]
[1738141454205,0.55587768,102610.0,102600.0,0.04006767]
[1738141454412,0.62872159,102610.0,102600.0,0.001]
[1738141454610,0.64967768,102610.0,102600.0,0.196]
[1738141456410,0.73678111,102610.0,102600.0,0.196]
[1738141457004,0.73678111,102610.0,102600.0,0.19616524]
[1738141457716,0.73678111,102610.0,102600.0,0.26900915]
[1738141458805,0.70658111,102610.0,102600.0,0.26900915]
[1738141459317,0.64298111,102610.0,102600.0,0.26900915]
[1738141459509,0.64298111,102610.0,102600.0,0.37278333]
[1738141459713,0.44800011,102610.0,102600.0,0.44562724]
[1738141460316,0.44800011,102610.0,102600.0,0.37278333]
[1738141462611,0.36089668,102610.0,102600.0,0.37278333]
[1738141463311,0.36089668,102610.0,102600.0,0.44562724]
[1738141464913,0.36089668,102610.0,102600.0,0.54308837]
[1738141470825,0.36089668,102610.0,102600.0,0.54931762]
[1738141473727,9.668e-05,102610.0,102600.0,0.54931762]
[1738141490135,0.08724956,102620.0,102610.0,0.194981]
[1738141490336,0.08724956,102620.0,102610.0,0.33829909]
[1738141491248,0.0883399,102620.0,102610.0,0.33829909]
[1738141491438,0.0903399,102620.0,102610.0,0.33829909]
[1738141492645,0.0903399,102620.0,102610.0,0.43575072]
[1738141492838,0.26075689,102630.0,102620.0,0.194962]
[1738141493149,0.17550275,102640.0,102630.0,0.194943]
[1738141493349,0.17550275,102640.0,102630.0,0.411305]
[1738141493548,0.17550275,102640.0,102630.0,0.5197513]
[1738141494840,0.17550275,102640.0,102630.0,0.5343913]
[1738141495047,0.00946256,102640.0,102630.0,0.5343913]
[1738141495635,0.008,102640.0,102630.0,0.5343913]
[1738141495943,0.00014613,102650.0,102640.0,0.194924]
[1738141496151,0.00014613,102650.0,102640.0,0.37024209]
[1738141496447,0.00014613,102650.0,102640.0,0.47324568]
[1738141496838,0.00014613,102650.0,102640.0,0.57066883]
[1738141497343,0.00014613,102650.0,102640.0,0.93146883]
[1738141497548,0.00014613,102650.0,102640.0,0.93246883]
[1738141497549,0.01314613,102650.0,102640.0,0.93246883]
[1738141497849,0.01314613,102650.0,102640.0,1.04078883]
[1738141500743,0.01314613,102650.0,102640.0,1.04695383]
[1738141501049,0.37394613,102650.0,102640.0,0.57166883]
[1738141501245,0.64169504,102650.0,102640.0,0.001]
[1738141501449,0.60105113,102650.0,102640.0,0.001]
[1738141501845,2.10105113,102650.0,102640.0,0.001]
[1738141502044,2.10105113,102650.0,102640.0,0.195924]
[1738141502348,0.60105113,102650.0,102640.0,0.26876791]
[1738141502747,0.60105113,102650.0,102640.0,0.195924]
[1738141503540,0.60105113,102650.0,102640.0,0.26876791]
[1738141503949,0.60105113,102650.0,102640.0,0.195924]
[1738141504846,0.60105113,102650.0,102640.0,0.26876791]
[1738141509153,0.56885113,102650.0,102640.0,0.26876791]
[1738141512261,0.56885113,102650.0,102640.0,0.30056791]
[1738141512960,0.56885113,102650.0,102640.0,0.30688013]
[1738141514969,0.56885113,102650.0,102640.0,0.30056791]
[1738141515369,0.37394613,102650.0,102640.0,0.30056791]
[1738141517560,0.37394613,102650.0,102640.0,0.33086791]
[1738141519071,0.56885113,102650.0,102640.0,0.33086791]
[1738141521680,0.37394613,102650.0,102640.0,0.33086791]
[1738141523968,0.01314613,102650.0,102640.0,0.33086791]
[1738141524170,0.01314613,102650.0,102640.0,0.36935075]
[1738141524867,0.01314613,102650.0,102640.0,0.71934061]
[1738141525173,0.01314613,102650.0,102640.0,0.92968798]
[1738141525369,0.01314613,102650.0,102640.0,1.29048798]
[1738141526978,0.3608,102670.0,102660.0,0.194886]
[1738141527267,0.3608,102670.0,102660.0,0.37905666]
[1738141527471,0.3608,102670.0,102660.0,0.55120869]
[1738141527675,0.3608,102670.0,102660.0,0.64861286]
[1738141528260,0.3638,102670.0,102660.0,0.64861286]
[1738141528568,0.3648,102670.0,102660.0,0.57576895]
[1738141529267,0.3618,102670.0,102660.0,0.57576895]
[1738141529469,0.3688,102670.0,102660.0,0.57676895]
[1738141529673,0.3688,102670.0,102660.0,0.64961286]
[1738141530065,0.3708,102670.0,102660.0,0.68181286]
[1738141530469,0.3708,102670.0,102660.0,0.78993286]
[1738141531772,0.3708,102670.0,102660.0,1.06707881]
[1738141534275,0.3708,102670.0,102660.0,1.10143988]
[1738141534479,0.3708,102670.0,102660.0,1.10890209]
[1738141534876,0.3708,102670.0,102660.0,1.12354209]
[1738141535077,0.3708,102670.0,102660.0,0.77355223]
[1738141541879,0.01,102670.0,102660.0,0.77355223]
[1738141542081,0.00160776,102680.0,102660.0,0.97790723]
[1738141542277,0.00160776,102680.0,102670.0,0.26771091]
[1738141542781,0.00160776,102680.0,102670.0,0.37433774]
[1738141543080,0.00160776,102680.0,102670.0,0.83253243]
[1738141543278,0.00160776,102680.0,102670.0,0.47173243]
[1738141543478,0.00760776,102680.0,102670.0,0.47273243]
[1738141543779,0.00760776,102680.0,102670.0,0.83353243]
[1738141543979,0.00014613,102680.0,102670.0,0.83253243]
[1738141544179,0.00414613,102680.0,102670.0,0.83253243]
[1738141544687,0.36494613,102680.0,102670.0,0.47173243]
[1738141545883,0.00414613,102680.0,102670.0,0.47173243]
[1738141554086,0.01144858,102680.0,102670.0,0.47173243]
[1738141554688,0.01144858,102680.0,102670.0,0.48637243]
[1738141555388,0.01144858,102680.0,102670.0,0.52482558]
[1738141555692,0.00414613,102680.0,102670.0,0.52482558]
[1738141558390,0.36494613,102680.0,102670.0,0.52482558]
[1738141558593,0.55979413,102680.0,102670.0,0.03845315]
[1738141558888,0.194867,102670.0,102660.0,0.03849108]
[1738141559089,0.194886,102660.0,102650.0,0.40846764]
[1738141559290,0.588186,102660.0,102650.0,0.44696156]
[1738141559491,0.588186,102660.0,102650.0,0.40846764]
[1738141559692,0.588186,102660.0,102650.0,0.48131155]
[1738141560889,0.588186,102660.0,102650.0,0.48431155]
[1738141561090,0.588186,102660.0,102650.0,0.48531155]
[1738141561490,0.588186,102660.0,102650.0,0.07699004]
[1738141562293,0.588186,102660.0,102650.0,0.27189504]
[1738141563291,0.588186,102660.0,102650.0,0.19905113]
[1738141563997,0.588186,102660.0,102650.0,0.00414613]
[1738141565601,0.5956075,102660.0,102650.0,0.00414613]
[1738141566103,0.66845141,102660.0,102650.0,0.00414613]
[1738141567396,0.5631075,102660.0,102650.0,0.27189504]
[1738141575204,0.58590113,102680.0,102670.0,0.194867]
[1738141575405,0.55580113,102680.0,102670.0,0.26771091]
[1738141575599,0.36094613,102680.0,102670.0,0.26771091]
[1738141575805,0.36094613,102680.0,102670.0,0.30081091]
[1738141576499,0.36294613,102680.0,102670.0,0.30081091]
[1738141578208,0.00214613,102680.0,102670.0,0.30081091]
[1738141578601,0.00214613,102680.0,102670.0,0.86041962]
[1738141579211,0.00214613,102680.0,102670.0,0.89881261]
[1738141579604,0.00014613,102680.0,102670.0,0.89881261]
[1738141582203,0.00014613,102680.0,102670.0,0.86341962]
[1738141582408,0.00014613,102680.0,102670.0,0.86441962]
[1738141584313,0.00014613,102680.0,102670.0,0.90279899]
[1738141588207,0.36094613,102680.0,102670.0,0.50361962]
[1738141588515,0.36094613,102680.0,102670.0,0.30481091]
[1738141589910,0.00014613,102680.0,102670.0,0.7630056]
[1738141590111,0.00014613,102680.0,102670.0,0.87481861]
[1738141592712,0.36094613,102680.0,102670.0,0.51401861]
[1738141594413,0.36094613,102680.0,102670.0,0.30481091]
[1738141595220,0.36094613,102680.0,102670.0,0.4022056]
[1738141595522,0.3608,102690.0,102680.0,0.194848]
[1738141595720,0.3608,102690.0,102680.0,0.32979191]
[1738141596111,0.655615,102700.0,102690.0,0.194829]
[1738141596313,0.655615,102700.0,102690.0,0.26767291]
[1738141598516,0.657615,102700.0,102690.0,0.26767291]
[1738141610240,0.657615,102700.0,102690.0,0.3061937]
[1738141610437,0.657615,102700.0,102690.0,0.26767291]
[1738141611244,0.657615,102700.0,102690.0,0.30619981]
[1738141613237,0.4628,102700.0,102690.0,0.37904372]
[1738141613437,0.4628,102700.0,102690.0,0.41014372]
[1738141613638,0.102,102700.0,102690.0,0.33729981]
[1738141619144,0.102,102700.0,102690.0,0.50751944]
[1738141619341,0.102,102700.0,102690.0,0.97997598]
[1738141619741,0.102,102700.0,102690.0,0.98810922]
[1738141620247,0.102,102700.0,102690.0,0.55446531]
[1738141620451,0.65761,102700.0,102690.0,0.0696269]
[1738141620642,0.65761,102700.0,102690.0,0.0385269]
[1738141620836,0.65761,102700.0,102680.0,0.43576604]
[1738141621043,0.3608,102690.0,102680.0,0.47429619]
[1738141624044,0.3608,102690.0,102680.0,0.6445253]
[1738141624246,0.18742185,102700.0,102690.0,0.194829]
[1738141624448,0.18742185,102700.0,102690.0,0.41044697]
[1738141624646,0.18742185,102700.0,102690.0,0.5145243]
[1738141624853,0.18742185,102700.0,102690.0,0.6119095]
[1738141626246,0.18842185,102700.0,102690.0,0.6119095]
[1738141627156,0.101,102700.0,102690.0,0.6119095]
[1738141627453,0.102,102700.0,102690.0,0.6119095]
[1738141628657,0.102,102700.0,102690.0,0.53906559]
[1738141629346,0.102,102700.0,102690.0,0.33760306]
[1738141629547,0.65761,102700.0,102690.0,0.23335915]
[1738141629752,0.73045391,102700.0,102690.0,0.03853015]
[1738141629954,0.194829,102690.0,102680.0,0.19498913]
[1738141630153,0.555629,102690.0,102680.0,0.26783304]
[1738141630455,0.587529,102690.0,102680.0,0.26783304]
[1738141633247,0.555629,102690.0,102680.0,0.26783304]
[1738141637365,0.555629,102690.0,102680.0,0.33113304]
[1738141640055,0.3608,102690.0,102680.0,0.33113304]
[1738141641269,0.54822185,102700.0,102690.0,0.194829]
[1738141641470,0.54822185,102700.0,102690.0,0.29867291]
[1738141641759,0.74303185,102700.0,102690.0,0.29867291]
[1738141642171,0.54822185,102700.0,102690.0,0.29867291]
[1738141642563,0.54922185,102700.0,102690.0,0.29867291]
[1738141642769,0.55022185,102700.0,102690.0,0.29867291]
[1738141643561,0.4628,102700.0,102690.0,0.29867291]
[1738141644463,0.4628,102700.0,102690.0,0.33716225]
[1738141647466,0.65761,102700.0,102690.0,0.29867291]
[1738141654377,0.65761,102700.0,102690.0,0.194829]
[1738141654576,0.72291,102700.0,102690.0,0.194829]
[1738141655678,0.72291,102700.0,102690.0,0.26767291]
[1738141657172,0.72291,102700.0,102690.0,0.194829]
[1738141663776,0.81033185,102700.0,102690.0,0.194829]
[1738141663976,0.44953185,102700.0,102690.0,0.194829]
[1738141664178,1.17113185,102700.0,102690.0,0.194829]
[1738141664683,1.17113185,102700.0,102690.0,0.2426434]
[1738141670477,0.194829,102690.0,102680.0,0.30610553]
[1738141670673,0.555629,102690.0,102680.0,0.34464115]
[1738141672993,0.555629,102690.0,102680.0,0.30610553]
[1738141673381,0.555629,102690.0,102680.0,0.34463852]
[1738141674182,0.555629,102690.0,102680.0,0.30610553]
[1738141674492,0.64305085,102690.0,102680.0,0.30610553]
[1738141676586,0.65171235,102690.0,102680.0,0.30610553]
[1738141677692,0.29091235,102690.0,102680.0,0.30610553]
[1738141677992,1.01251235,102690.0,102680.0,0.30610553]
[1738141680093,0.29091235,102690.0,102680.0,0.30610553]
[1738141680289,1.01251235,102690.0,102680.0,0.30610553]
[1738141680594,1.06032675,102690.0,102680.0,0.00014613]
[1738141680791,1.09302675,102690.0,102680.0,0.00014613]
[1738141683885,1.20966074,102690.0,102680.0,0.00014613]
[1738141687693,0.194867,102670.0,102660.0,0.1099144]
[1738141688002,0.916467,102670.0,102660.0,0.1099144]
[1738141688696,0.9642814,102670.0,102660.0,0.1099144]
[1738141688886,0.9642814,102670.0,102660.0,0.1119144]
[1738141689083,0.916467,102670.0,102660.0,0.1179144]
[1738141689692,0.9642814,102670.0,102660.0,0.008]
[1738141689892,0.9642814,102670.0,102660.0,1e-06]
[1738141689893,1.0120958,102670.0,102660.0,1e-06]
[1738141690192,0.194905,102650.0,102640.0,0.8746013]
[1738141690396,1.0121338,102650.0,102640.0,0.7591153]
[1738141690702,0.194924,102640.0,102630.0,1.3736991]
[1738141690889,0.6513528,102640.0,102630.0,1.3736991]
[1738141691089,0.6513528,102640.0,102630.0,0.40831205]
[1738141692598,0.62869095,102640.0,102630.0,0.40831205]
[1738141692791,0.62969095,102640.0,102630.0,0.40831205]
[1738141693489,0.560724,102640.0,102630.0,0.40831205]
[1738141693898,0.560724,102640.0,102620.0,0.10383559]
[1738141693899,0.194943,102630.0,102620.0,0.03086864]
[1738141694089,0.555743,102630.0,102620.0,0.03086864]
[1738141695091,0.556743,102630.0,102620.0,0.03086864]
[1738141697297,0.62970995,102630.0,102620.0,0.03086864]
[1738141697694,0.556743,102630.0,102620.0,0.03086864]
[1738141700303,0.556743,102630.0,102620.0,0.06226864]
[1738141702205,0.62970995,102630.0,102620.0,0.06226864]
[1738141705609,0.62970995,102630.0,102620.0,0.00026864]
[1738141706303,0.7026769,102630.0,102620.0,0.00026864]
[1738141706610,0.194962,102620.0,102610.0,0.0321]
[1738141706915,0.62872895,102620.0,102610.0,0.0321]
[1738141707802,0.62872895,102620.0,102610.0,0.0361]
[1738141708200,0.62872895,102620.0,102610.0,0.0357558]
[1738141709710,0.7161508,102620.0,102610.0,0.0357558]
[1738141710599,0.7161508,102620.0,102610.0,0.0347558]
[1738141710811,0.7181508,102620.0,102610.0,0.0347558]
[1738141711009,0.7241508,102620.0,102610.0,0.0327558]
[1738141711214,0.73302871,102620.0,102610.0,0.0327558]
[1738141712507,0.75586634,102620.0,102610.0,0.0327558]
[1738141712714,0.82459804,102620.0,102610.0,0.0327558]
[1738141713019,0.87250033,102620.0,102610.0,0.0327558]
[1738141713608,0.82459804,102620.0,102610.0,0.0327558]
[1738141714514,0.77669575,102620.0,102610.0,0.08065809]
[1738141715721,0.82459804,102620.0,102610.0,0.0327558]
[1738141717511,0.77669575,102620.0,102610.0,0.27563909]
[1738141718110,0.83510234,102620.0,102610.0,0.27563909]
[1738141718620,0.83510234,102620.0,102610.0,0.30070452]
[1738141721619,0.89250854,102620.0,102610.0,0.30070452]
[1738141725024,0.71846835,102620.0,102610.0,0.30070452]
[1738141728319,0.35766835,102620.0,102610.0,0.30070452]
[1738141728524,1.07926835,102620.0,102610.0,0.30070452]
[1738141729621,1.07926835,102620.0,102610.0,0.2277368]
[1738141729821,1.15223607,102620.0,102610.0,0.2277368]
[1738141730029,1.15223607,102620.0,102610.0,0.001]
[1738141730412,1.24813607,102620.0,102610.0,0.001]
[1738141730621,2.74813607,102620.0,102610.0,0.001]
[1738141731021,1.24813607,102620.0,102610.0,0.001]
[1738141733433,1.27634782,102620.0,102610.0,0.001]
[1738141739931,1.17487316,102620.0,102610.0,0.001]
[1738141741630,1.17487316,102620.0,102610.0,0.195981]
[1738141743529,1.14277316,102620.0,102610.0,0.195981]
[1738141744134,1.11227316,102620.0,102610.0,0.26894872]
[1738141744333,0.88401116,102620.0,102610.0,0.26894872]
[1738141744534,1.07897316,102620.0,102610.0,0.27456152]
[1738141745636,1.19536203,102620.0,102610.0,0.27456152]
[1738141746534,1.19536203,102620.0,102610.0,0.29964577]
[1738141748131,1.28266449,102620.0,102610.0,0.29964577]
[1738141748334,1.13713124,102620.0,102610.0,0.29964577]
[1738141751745,1.13713124,102620.0,102610.0,0.226681]
[1738141758143,1.13713124,102620.0,102610.0,0.29964577]
[1738141758743,1.04982878,102620.0,102610.0,0.29964577]
[1738141759752,1.04982878,102620.0,102610.0,0.29979918]
[1738141764050,1.13706957,102620.0,102610.0,0.29979918]
[1738141765340,1.21003434,102620.0,102610.0,0.00115341]
[1738141765543,1.30423434,102620.0,102610.0,0.00115341]
[1738141765745,1.30435578,102620.0,102610.0,0.00115341]
[1738141766052,2.80435578,102620.0,102610.0,0.00115341]
[1738141766650,2.82720059,102620.0,102610.0,0.00115341]
[1738141766953,1.32720059,102620.0,102610.0,0.00115341]
[1738141767754,1.2792958,102620.0,102610.0,0.0490582]
[1738141767954,1.2792958,102620.0,102610.0,0.00115341]
[1738141768653,1.34733479,102620.0,102610.0,0.00115341]
[1738141771149,1.1732946,102620.0,102610.0,0.00115341]
[1738141772754,1.1095946,102620.0,102610.0,0.19613441]
[1738141777149,1.16754225,102620.0,102610.0,0.19613441]
[1738141777551,1.16754225,102620.0,102610.0,0.26911671]
[1738141777753,1.13704225,102620.0,102610.0,0.22623441]
[1738141779759,1.21002455,102620.0,102610.0,0.22623441]
[1738141780246,1.13704225,102620.0,102610.0,0.22623441]
[1738141783350,1.04983615,102620.0,102610.0,0.19613441]
[1738141783552,1.15461845,102620.0,102610.0,0.00115341]
[1738141786455,1.1838769,102620.0,102610.0,0.00115341]
[1738141788663,1.1838769,102620.0,102600.0,0.22764213]
[1738141788664,0.195047,102580.0,102560.0,0.24311065]